bitfinex/quotes_BTCUSD_20250108
["timestamp","ask_amount","ask_price","bid_price","bid_amount"]
[1736357589584,0.13096,93498.0,93495.0,0.1]
[1736357589834,0.13096,93498.0,93497.0,0.41391]
[1736357590136,0.13096,93498.0,93495.0,0.213915]
[1736357590357,0.13096,93497.0,93475.0,0.213959]
[1736357590556,0.16154,93529.0,93400.0,0.38275657]
[1736357590557,0.15,93495.0,93467.0,0.213979]
[1736357590732,0.15,93493.0,93467.0,0.213978]
[1736357590915,0.13096,93492.0,93481.0,0.213945]
[1736357591119,0.13092,93491.0,93474.0,0.08805166]
[1736357591342,0.13092,93496.0,93484.0,0.08805166]
[1736357591555,0.0789,93521.0,93484.0,0.08805166]
[1736357591556,0.27736394,93487.0,93485.0,0.08805166]
[1736357591753,0.13092,93488.0,93486.0,0.31823476]
[1736357591953,0.15,93493.0,93482.0,0.08805166]
[1736357592311,0.15,93491.0,93467.0,0.08805166]
[1736357592491,0.15,93491.0,93443.0,0.214033]
[1736357592492,0.25429976,93491.0,93461.0,0.07915166]
[1736357592736,0.15,93489.0,93463.0,0.07915166]
[1736357592948,0.15,93489.0,93422.0,0.1]
[1736357592949,0.15,93487.0,93438.0,0.0993]
[1736357593128,0.1975,93485.0,93444.0,0.214031]
[1736357593449,0.0821,93482.0,93477.0,0.0015]
[1736357593577,0.10429976,93481.0,93477.0,0.0015]
[1736357593777,0.0821,93482.0,93477.0,0.0015]
[1736357593976,0.23521976,93481.0,93477.0,0.0015]
[1736357594202,0.15,93480.0,93477.0,0.0015]
[1736357594775,0.13092,93481.0,93478.0,0.0215468]
[1736357594989,0.00219305,93469.0,93456.0,0.07915166]
[1736357595191,0.00219305,93469.0,93450.0,0.214017]
[1736357595192,0.00219305,93469.0,93450.0,0.214018]
[1736357595373,0.00219305,93469.0,93452.0,0.07915166]
[1736357595571,0.00219305,93469.0,93459.0,0.213996]
[1736357595776,0.00219305,93469.0,93457.0,0.07915166]
[1736357596019,0.10429976,93468.0,93449.0,0.7861627]
[1736357596266,0.15,93467.0,93449.0,0.7861627]
[1736357596437,0.15,93465.0,93449.0,0.7861627]
[1736357596593,0.15,93463.0,93449.0,0.7861627]
[1736357596800,0.15,93461.0,93449.0,0.7861627]
[1736357597003,0.00219305,93469.0,93450.0,0.214018]
[1736357597226,0.13096,93468.0,93449.0,0.7861627]
[1736357597423,0.15,93467.0,93449.0,0.7861627]
[1736357597628,0.15,93465.0,93449.0,0.7861627]
[1736357597867,0.15,93463.0,93449.0,0.7861627]
[1736357598046,0.15,93461.0,93450.0,5e-05]
[1736357598369,0.15,93459.0,93450.0,5e-05]
[1736357598576,0.15,93459.0,93449.0,0.7861627]
[1736357598577,0.15,93455.0,93449.0,0.7861627]
[1736357598781,0.25429976,93455.0,93449.0,0.7861627]
[1736357598967,0.15,93455.0,93449.0,0.7861627]
[1736357599154,0.15,93453.0,93449.0,0.7861627]
[1736357599354,0.15,93451.0,93449.0,0.7861627]
[1736357599556,0.38525976,93450.0,93449.0,0.7861627]
[1736357599798,0.28096,93450.0,93449.0,0.7861627]
[1736357600138,0.38525976,93450.0,93449.0,0.75707025]
[1736357600268,0.38412558,93450.0,93449.0,0.75707025]
[1736357600615,0.25316558,93450.0,93449.0,0.75707025]
[1736357600856,0.27602582,93450.0,93449.0,0.75707025]
[1736357601077,0.38032558,93450.0,93449.0,0.75487025]
[1736357601249,0.38032558,93450.0,93449.0,0.75177025]
[1736357601390,0.38032558,93450.0,93449.0,0.74757025]
[1736357601853,0.38032558,93450.0,93449.0,0.74237025]
[1736357603138,0.14886582,93450.0,93449.0,0.74237025]
[1736357603342,0.14886582,93450.0,93449.0,0.47370003]
[1736357603539,0.12716,93450.0,93449.0,0.49670003]
[1736357603807,0.499985,93452.0,93450.0,0.022]
[1736357603955,0.499985,93452.0,93451.0,0.04957]
[1736357604166,0.499985,93452.0,93450.0,0.214017]
[1736357604167,0.627145,93452.0,93450.0,0.214017]
[1736357604544,0.12716,93452.0,93449.0,0.47370003]
[1736357605409,0.12716,93452.0,93449.0,0.47310003]
[1736357605822,0.12716,93452.0,93451.0,0.023]
[1736357606232,0.12716,93452.0,93449.0,0.47310003]
[1736357606479,0.25429976,93451.0,93449.0,0.47310003]
[1736357606686,0.25429976,93451.0,93449.0,0.20141868]
[1736357606872,0.12716,93452.0,93399.0,7e-05]
[1736357606873,0.15,93441.0,93399.0,7e-05]
[1736357607076,0.15,93437.0,93404.0,0.2107922]
[1736357607278,0.15,93435.0,93410.0,0.214109]
[1736357607479,0.15,93433.0,93405.0,0.214121]
[1736357607654,0.12716,93436.0,93399.0,7e-05]
[1736357607655,0.15,93431.0,93399.0,7e-05]
[1736357607862,0.15,93429.0,93399.0,7e-05]
[1736357608127,0.15,93427.0,93399.0,7e-05]
[1736357608245,0.15,93421.0,93399.0,7e-05]
[1736357608455,0.364071,93427.0,93399.0,7e-05]
[1736357608456,0.25429976,93419.0,93399.0,7e-05]
[1736357608648,0.15,93417.0,93399.0,7e-05]
[1736357608895,0.15,93415.0,93399.0,7e-05]
[1736357609069,0.15,93413.0,93387.0,0.214162]
[1736357609270,0.15,93411.0,93377.0,0.0993]
[1736357609471,0.15,93409.0,93386.0,0.07915166]
[1736357609812,0.15,93407.0,93392.0,0.0203]
[1736357609959,0.15,93407.0,93398.0,0.214136]
[1736357610141,0.15,93405.0,93396.0,0.214141]
[1736357610347,0.45489397,93415.0,93414.0,0.07915166]
[1736357610547,0.45489397,93418.0,93417.0,0.07915166]
[1736357610844,0.45489397,93418.0,93417.0,0.28215142]
[1736357611030,0.45489397,93418.0,93417.0,0.35318636]
[1736357611154,0.45489397,93418.0,93417.0,0.10429976]
[1736357611360,0.45489397,93418.0,93411.0,0.07915166]
[1736357611581,0.45489397,93430.0,93428.0,0.214066]
[1736357611781,0.12716,93429.0,93415.0,0.07745166]
[1736357612118,0.12716,93429.0,93413.0,0.214101]
[1736357612319,0.12716,93429.0,93418.0,0.023]
[1736357612542,0.12716,93429.0,93406.0,0.07745166]
[1736357612543,0.10429976,93428.0,93406.0,0.07745166]
[1736357612718,0.15,93427.0,93406.0,0.214118]
[1736357612881,0.15,93425.0,93406.0,0.07745166]
[1736357613083,0.15,93425.0,93382.0,0.214173]
[1736357613084,0.12716,93429.0,93418.0,0.023]
[1736357613298,0.12716,93429.0,93407.0,0.07745166]
[1736357613299,0.15,93427.0,93399.0,0.07745166]
[1736357613503,0.15,93425.0,93393.0,0.214148]
[1736357613781,0.15,93423.0,93392.0,0.07745166]
[1736357613993,0.15,93421.0,93395.0,0.214144]
[1736357614203,0.15,93405.0,93395.0,0.214144]
[1736357614409,0.45660921,93406.0,93405.0,0.10045166]
[1736357614617,0.60660921,93406.0,93405.0,0.19915166]
[1736357614760,0.15,93406.0,93405.0,0.19915166]
[1736357614961,0.15,93405.0,93392.0,0.07745166]
[1736357615189,0.15,93405.0,93391.0,0.07745166]
[1736357615417,0.15,93405.0,93400.0,0.214132]
[1736357615625,0.499985,93425.0,93410.0,0.0987]
[1736357615823,1.05561378,93474.0,93429.0,0.237066]
[1736357615824,0.499985,93430.0,93429.0,0.237066]
[1736357616026,0.499985,93430.0,93429.0,0.51751742]
[1736357616305,0.378985,93430.0,93429.0,0.41881742]
[1736357616439,0.12224,93456.0,93446.0,0.07745166]
[1736357616638,0.12224,93456.0,93455.0,0.214006]
[1736357616838,0.12224,93456.0,93429.0,0.5017627]
[1736357616839,0.12224,93456.0,93447.0,0.214025]
[1736357617046,0.12224,93455.0,93441.0,0.17615166]
[1736357617263,0.54543818,93467.0,93443.0,0.214034]
[1736357617471,0.12224,93458.0,93439.0,0.214043]
[1736357617682,0.12224,93458.0,93419.0,0.0987]
[1736357617683,0.15,93456.0,93419.0,0.0987]
[1736357617895,0.15,93454.0,93411.0,0.02179102]
[1736357618101,0.15,93452.0,93423.0,0.214077]
[1736357618300,0.15,93452.0,93426.0,0.0987]
[1736357618524,0.15,93452.0,93433.0,0.207055]
[1736357618724,0.12224,93458.0,93437.0,0.214046]
[1736357618984,8.52e-05,93461.0,93447.0,0.214023]
[1736357619114,0.12224,93457.0,93450.0,0.0987]
[1736357619324,0.12224,93457.0,93442.0,0.17615166]
[1736357619519,0.15,93456.0,93442.0,0.07745166]
[1736357619723,0.15,93454.0,93443.0,0.14331913]
[1736357620010,0.15,93454.0,93449.0,0.21402]
[1736357620178,0.12224,93455.0,93454.0,0.214009]
[1736357620523,0.15,93454.0,93438.0,0.214045]
[1736357620857,0.15,93454.0,93417.0,0.07745166]
[1736357621067,0.15,93452.0,93411.0,0.89]
[1736357621280,0.12224,93455.0,93411.0,0.89]
[1736357621281,0.15,93434.0,93411.0,0.89]
[1736357621483,0.15,93432.0,93411.0,0.89]
[1736357621693,0.12729976,93431.0,93411.0,0.89]
[1736357621896,0.214065,93430.0,93411.0,0.89]
[1736357622102,0.20632442,93451.0,93411.0,0.89]
[1736357622272,0.12729976,93441.0,93411.0,0.89]
[1736357622476,0.023,93429.0,93411.0,0.89]
[1736357622771,0.214083,93422.0,93411.0,0.89]
[1736357622971,0.10429976,93421.0,93411.0,0.89]
[1736357623173,0.12224,93455.0,93411.0,0.89]
[1736357623331,0.214055,93434.0,93411.0,0.89]
[1736357623535,0.10429976,93433.0,93411.0,0.89]
[1736357623759,0.15,93432.0,93411.0,0.89]
[1736357623956,0.214018,93450.0,93415.0,0.0987]
[1736357624135,0.17770387,93449.0,93420.0,0.0987]
[1736357624332,0.17770387,93449.0,93421.0,0.214084]
[1736357624519,0.12224,93448.0,93420.0,0.0987]
[1736357624715,0.10429976,93447.0,93426.0,0.214071]
[1736357624940,0.10429976,93447.0,93418.0,0.07745166]
[1736357625149,0.10429976,93447.0,93411.0,0.89]
[1736357625150,0.12224,93446.0,93411.0,0.9887]
[1736357625390,0.15,93437.0,93416.0,0.214093]
[1736357625592,0.25429976,93437.0,93416.0,0.214093]
[1736357625791,0.25429976,93437.0,93411.0,0.9887]
[1736357625989,0.15,93437.0,93423.0,0.214079]
[1736357626401,0.15,93435.0,93425.0,0.214075]
[1736357626620,0.15,93433.0,93412.0,0.0987]
[1736357626859,0.15,93433.0,93411.0,0.8835]
[1736357627060,0.10429976,93432.0,93411.0,0.8835]
[1736357627484,0.15,93431.0,93411.0,0.8835]
[1736357627690,0.15,93429.0,93411.0,0.8835]
[1736357627965,0.15,93427.0,93411.0,0.61464066]
[1736357628103,0.15,93423.0,93411.0,0.61464066]
[1736357628305,0.214097,93416.0,93411.0,0.61464066]
[1736357628511,0.25429976,93415.0,93411.0,0.61464066]
[1736357629452,0.15,93413.0,93411.0,0.20633892]
[1736357629622,0.46840476,93412.0,93411.0,0.20633892]
[1736357630449,0.49140476,93412.0,93411.0,0.20633892]
[1736357630644,0.49140476,93412.0,93370.0,0.025163]
[1736357630645,0.15,93400.0,93370.0,0.025163]
[1736357630842,0.02254834,93409.0,93370.0,0.00539546]
[1736357630843,0.173,93398.0,93370.0,0.00539546]
[1736357631024,0.10429976,93390.0,93371.0,0.214199]
[1736357631243,0.1307,93412.0,93370.0,0.00539546]
[1736357631244,0.12224,93389.0,93385.0,0.428332]
[1736357631435,0.16092,93417.0,93385.0,0.428332]
[1736357631436,0.12224,93388.0,93385.0,0.428332]
[1736357631642,0.16092,93417.0,93382.0,0.0987]
[1736357631643,0.12224,93390.0,93382.0,0.0987]
[1736357631862,0.15,93389.0,93385.0,0.214167]
[1736357632577,0.14,93389.0,93388.0,0.0987]
[1736357632779,0.14,93389.0,93388.0,0.21416]
[1736357633188,0.14,93389.0,93388.0,0.31286]
[1736357633935,0.50177441,93413.0,93388.0,0.41715976]
[1736357634149,0.50177441,93413.0,93411.0,0.0987]
[1736357634340,0.50177441,93413.0,93412.0,0.41710476]
[1736357634510,0.50177441,93413.0,93412.0,0.49455642]
[1736357634719,0.50177441,93418.0,93417.0,0.214093]
[1736357634919,0.50177441,93418.0,93417.0,0.49454442]
[1736357635915,0.15,93433.0,93431.0,0.29151266]
[1736357636067,0.50177441,93436.0,93433.0,0.214056]
[1736357636277,0.50177441,93436.0,93435.0,0.0987]
[1736357636483,0.50177441,93436.0,93435.0,0.20299976]
[1736357636843,0.50177441,93436.0,93435.0,0.28045142]
[1736357637455,0.11724,93443.0,93433.0,0.0987]
[1736357637456,0.15,93441.0,93433.0,0.0987]
[1736357637700,0.15,93441.0,93440.0,0.214038]
[1736357637908,0.15,93441.0,93440.0,0.41703776]
[1736357638318,0.15,93441.0,93440.0,0.312738]
[1736357639263,0.15,93442.0,93440.0,0.312738]
[1736357639394,0.15,93442.0,93440.0,0.214038]
[1736357639595,0.15,93442.0,93436.0,0.214049]
[1736357640208,0.15,93442.0,93435.0,0.004]
[1736357640414,0.10429976,93441.0,93435.0,0.004]
[1736357640822,0.15,93442.0,93435.0,0.004]
[1736357641101,0.11724,93443.0,93435.0,0.004]
[1736357641102,0.54758305,93439.0,93435.0,0.004]
[1736357641273,0.15,93438.0,93435.0,0.004]
[1736357641476,0.15,93438.0,93426.0,0.214071]
[1736357641679,0.15,93436.0,93407.0,0.214116]
[1736357641887,0.23148231,93438.0,93399.0,0.214135]
[1736357641888,0.173,93434.0,93399.0,0.214135]
[1736357642235,0.173,93434.0,93380.0,0.214177]
[1736357642236,0.173,93432.0,93404.0,0.214123]
[1736357642444,0.08148231,93438.0,93391.0,0.214151]
[1736357642445,0.15,93427.0,93391.0,0.214151]
[1736357642665,0.15,93418.0,93388.0,0.0987]
[1736357642871,0.15,93418.0,93369.0,0.0469]
[1736357642872,0.023,93415.0,93378.0,0.214181]
[1736357643094,0.15,93410.0,93385.0,0.0987]
[1736357643270,0.15,93404.0,93390.0,0.214155]
[1736357643506,0.11724,93403.0,93383.0,0.214171]
[1736357643717,0.15,93402.0,93382.0,0.0987]
[1736357643936,0.15,93402.0,93389.0,0.214156]
[1736357644324,0.15,93402.0,93384.0,0.214169]
[1736357644814,0.15,93396.0,93376.0,0.0987]
[1736357645168,0.50198475,93397.0,93373.0,0.0001704]
[1736357645169,0.10429976,93395.0,93373.0,0.0001704]
[1736357645374,0.22153976,93395.0,93373.0,0.0001704]
[1736357645656,0.15,93394.0,93378.0,0.21418]
[1736357645863,0.66286475,93397.0,93394.0,0.214146]
[1736357646003,0.11724,93396.0,93394.0,0.214146]
[1736357646592,0.11724,93396.0,93395.0,0.28045142]
[1736357646791,0.66092,93448.0,93395.0,0.28045142]
[1736357646792,0.001,93440.0,93422.0,0.214082]
[1736357646962,0.1124,93427.0,93422.0,0.41708176]
[1736357647164,0.1124,93427.0,93422.0,0.312782]
[1736357647582,0.001,93440.0,93422.0,0.39023366]
[1736357647747,0.001,93440.0,93439.0,0.312743]
[1736357647946,0.151,93440.0,93439.0,0.214043]
[1736357648146,0.001,93440.0,93439.0,0.29149466]
[1736357648422,0.001,93440.0,93439.0,0.39019466]
[1736357648771,0.001,93440.0,93437.0,0.214047]
[1736357648772,0.00087117,93440.0,93432.0,0.214059]
[1736357649017,0.00087117,93440.0,93420.0,0.214085]
[1736357649299,0.00087117,93440.0,93424.0,0.214075]
[1736357649877,0.15,93438.0,93424.0,0.214075]
[1736357650120,0.15,93438.0,93422.0,0.214081]
[1736357650280,0.15,93436.0,93404.0,0.0987]
[1736357650463,0.364056,93434.0,93401.0,0.21413]
[1736357650661,0.364056,93434.0,93391.0,0.07745166]
[1736357650662,0.15,93432.0,93402.0,0.214127]
[1736357650867,0.15,93428.0,93402.0,0.214127]
[1736357651121,0.15,93428.0,93374.0,0.214191]
[1736357651122,0.15,93426.0,93394.0,0.214145]
[1736357651328,0.15,93426.0,93373.0,0.0001704]
[1736357651329,0.15,93407.0,93373.0,0.0001704]
[1736357651543,0.50283366,93408.0,93373.0,0.0001704]
[1736357651544,0.15,93405.0,93381.0,0.214175]
[1736357651751,0.50283366,93408.0,93373.0,0.07762206]
[1736357651752,0.15,93400.0,93374.0,0.0986]
[1736357651907,0.15,93400.0,93386.0,0.0986]
[1736357652112,0.15,93400.0,93395.0,0.312743]
[1736357652311,0.15,93400.0,93399.0,0.0986]
[1736357652547,0.15,93400.0,93399.0,0.214135]
[1736357652750,0.15,93400.0,93399.0,0.312735]
[1736357653294,0.11236,93404.0,93402.0,0.0986]
[1736357653295,0.15,93403.0,93402.0,0.0986]
[1736357653490,0.11236,93404.0,93403.0,0.39017666]
[1736357653695,0.02825432,93438.0,93418.0,0.0986]
[1736357653969,0.215026,93447.0,93420.0,0.0986]
[1736357653970,0.001,93447.0,93420.0,0.0986]
[1736357654331,0.001,93447.0,93439.0,0.12836623]
[1736357654523,0.11327117,93440.0,93439.0,0.12836623]
[1736357654633,0.11327117,93440.0,93439.0,0.23266599]
[1736357655116,0.11327117,93440.0,93439.0,0.10429976]
[1736357655299,0.11327117,93440.0,93406.0,0.02976623]
[1736357655300,0.15,93439.0,93406.0,0.02976623]
[1736357655500,0.15,93439.0,93373.0,0.0001704]
[1736357655501,0.21405,93436.0,93407.0,0.214116]
[1736357655844,0.10429976,93435.0,93373.0,0.0001704]
[1736357656061,0.25429976,93434.0,93387.0,0.10429976]
[1736357656263,0.25429976,93434.0,93373.0,0.0001704]
[1736357656264,0.15,93406.0,93373.0,0.0001704]
[1736357656470,0.15,93402.0,93374.0,0.214191]
[1736357656639,0.15,93402.0,93373.0,0.0001704]
[1736357656640,0.15,93400.0,93373.0,0.0001704]
[1736357656843,0.15,93393.0,93373.0,0.0001704]
[1736357657258,0.10429976,93392.0,93373.0,0.0001704]
[1736357657424,0.15,93391.0,93373.0,0.0001704]
[1736357657651,0.16092,93401.0,93373.0,0.0001704]
[1736357657652,0.1124,93390.0,93383.0,0.21417]
[1736357657875,0.1124,93389.0,93373.0,0.2143624]
[1736357658084,0.37303125,93404.0,93373.0,0.0001704]
[1736357658085,0.15,93387.0,93373.0,0.0001704]
[1736357658303,0.25429976,93387.0,93386.0,0.47778108]
[1736357658503,0.25429976,93387.0,93317.0,0.2144908]
[1736357658504,0.023,93370.0,93317.0,0.2144908]
[1736357658703,0.364233,93356.0,93317.0,0.2144908]
[1736357658950,0.15,93349.0,93322.0,0.21431]
[1736357659156,0.36669976,93349.0,93319.0,0.02976623]
[1736357659566,0.36669976,93349.0,93323.0,0.214307]
[1736357659768,0.36669976,93349.0,93346.0,0.24024735]
[1736357660199,1.05561378,93381.0,93346.0,0.24024735]
[1736357660404,0.38440077,93385.0,93346.0,0.24024735]
[1736357660405,0.21673976,93368.0,93346.0,0.24024735]
[1736357660598,0.11244,93367.0,93357.0,0.02976623]
[1736357660809,0.11244,93367.0,93360.0,0.214223]
[1736357661015,0.11244,93367.0,93355.0,0.214235]
[1736357661016,0.15,93366.0,93355.0,0.214235]
[1736357661214,0.15,93366.0,93348.0,0.2144208]
[1736357661425,0.15,93366.0,93348.0,0.0001698]
[1736357661620,0.15,93366.0,93348.0,0.2144198]
[1736357661865,0.15,93364.0,93348.0,0.0001698]
[1736357662086,0.15,93358.0,93348.0,0.0001698]
[1736357662310,0.15,93356.0,93348.0,0.0001698]
[1736357662522,0.15,93350.0,93348.0,0.0001698]
[1736357662725,0.0782,93360.0,93316.0,0.0001698]
[1736357662726,0.15,93340.0,93316.0,0.0001698]
[1736357662929,0.15,93333.0,93316.0,0.0001698]
[1736357663075,0.001,93348.0,93316.0,0.0001698]
[1736357663076,0.15,93324.0,93316.0,0.0001698]
[1736357663285,0.15,93322.0,93316.0,0.0001698]
[1736357663487,0.15,93318.0,93316.0,0.0001698]
[1736357663686,0.15,93316.0,93292.0,0.0960167]
[1736357663886,0.15,93316.0,93290.0,0.0001698]
[1736357663887,0.07023377,93313.0,93290.0,0.0001698]
[1736357664044,0.25429976,93291.0,93290.0,0.0001698]
[1736357664245,0.36673976,93291.0,93290.0,0.0001698]
[1736357664452,0.36673976,93291.0,93268.0,0.02974623]
[1736357664453,0.25429976,93291.0,93268.0,0.02974623]
[1736357664652,0.10429976,93290.0,93268.0,0.02974623]
[1736357664858,0.05003166,93315.0,93275.0,0.214417]
[1736357665159,0.05003166,93315.0,93253.0,0.16934623]
[1736357665160,0.11244,93314.0,93276.0,0.13617144]
[1736357665346,0.11244,93314.0,93297.0,0.214367]
[1736357665521,0.11244,93314.0,93310.0,0.214338]
[1736357665729,0.05003166,93315.0,93308.0,0.214343]
[1736357665934,0.01927345,93313.0,93311.0,0.10429976]
[1736357666259,0.11248,93312.0,93311.0,0.10429976]
[1736357666817,0.11248,93312.0,93289.0,0.214387]
[1736357667038,0.15,93311.0,93291.0,0.214382]
[1736357667236,0.15,93311.0,93291.0,0.10429976]
[1736357667442,0.16927345,93311.0,93279.0,0.21441]
[1736357667701,0.15,93309.0,93268.0,0.214434]
[1736357667932,0.15,93307.0,93269.0,0.10429976]
[1736357668077,0.214351,93305.0,93269.0,0.10429976]
[1736357668284,0.15,93303.0,93269.0,0.10429976]
[1736357668552,0.06003852,93306.0,93269.0,0.10429976]
[1736357668553,0.15,93301.0,93269.0,0.10429976]
[1736357668831,0.15,93299.0,93246.0,0.00017]
[1736357668968,0.15,93288.0,93251.0,0.10429976]
[1736357669171,0.15,93288.0,93246.0,0.00017]
[1736357669172,0.15,93284.0,93246.0,0.00017]
[1736357669372,0.02542998,93298.0,93273.0,8.52e-05]
[1736357669373,0.15,93282.0,93273.0,8.52e-05]
[1736357669579,0.15,93280.0,93273.0,8.52e-05]
[1736357670065,0.10772,93279.0,93273.0,8.52e-05]
[1736357670339,0.15,93278.0,93273.0,8.52e-05]
[1736357670549,0.15,93276.0,93273.0,8.52e-05]
[1736357670760,0.15,93274.0,93273.0,8.52e-05]
[1736357670930,0.25429976,93274.0,93273.0,8.52e-05]
[1736357671137,0.15,93274.0,93273.0,8.52e-05]
[1736357671379,0.44115176,93274.0,93273.0,8.52e-05]
[1736357671590,0.44115176,93274.0,93273.0,0.0107656]
[1736357671768,2.01015176,93274.0,93246.0,0.00017]
[1736357671923,0.15,93258.0,93246.0,0.00017]
[1736357672146,0.186852,93274.0,93246.0,0.00017]
[1736357672147,0.16108,93274.0,93246.0,0.00017]
[1736357672345,0.10776,93257.0,93251.0,0.10429976]
[1736357672765,0.10776,93257.0,93252.0,0.214472]
[1736357672966,0.10776,93257.0,93247.0,0.214482]
[1736357673164,0.10776,93257.0,93246.0,0.00017]
[1736357673165,0.15,93256.0,93246.0,0.00017]
[1736357673371,0.15,93254.0,93246.0,0.00017]
[1736357673789,0.364472,93252.0,93246.0,0.00017]
[1736357673991,0.25429976,93251.0,93246.0,0.00017]
[1736357674617,0.578954,93250.0,93246.0,0.00017]
[1736357674813,0.61909976,93251.0,93246.0,0.00017]
[1736357674814,0.15,93248.0,93246.0,0.00017]
[1736357675149,0.25429976,93247.0,93246.0,0.00017]
[1736357675337,0.2578,93247.0,93246.0,0.00017]
[1736357675968,0.1712578,93247.0,93216.0,0.023]
[1736357676168,0.1712578,93247.0,93243.0,0.428982]
[1736357676323,0.22894387,93247.0,93245.0,0.214488]
[1736357676675,0.22894387,93247.0,93246.0,0.10429976]
[1736357676676,0.09371585,93247.0,93246.0,0.10429976]
[1736357677201,0.1078,93266.0,93246.0,0.10429976]
[1736357677404,0.1078,93266.0,93248.0,0.214481]
[1736357677552,0.2578,93265.0,93248.0,0.214481]
[1736357677755,0.2578,93265.0,93249.0,0.10429976]
[1736357677955,0.2578,93265.0,93250.0,0.31877476]
[1736357678317,0.05768607,93273.0,93250.0,0.10429976]
[1736357678318,0.1078,93264.0,93250.0,0.10429976]
[1736357678701,0.1078,93264.0,93258.0,0.428915]
[1736357679021,0.13820537,93264.0,93260.0,0.428908]
[1736357679133,0.13820537,93264.0,93261.0,0.10429976]
[1736357679647,0.13820537,93264.0,93262.0,0.31874876]
[1736357680312,0.03040537,93264.0,93262.0,0.31874876]
[1736357680457,0.01235217,93264.0,93263.0,0.10429976]
[1736357680655,0.1078,93272.0,93271.0,0.214428]
[1736357680867,0.1078,93272.0,93271.0,0.31872776]
[1736357681243,0.001,93311.0,93284.0,0.214399]
[1736357681244,0.1078,93285.0,93284.0,0.214399]
[1736357681391,0.1078,93290.0,93284.0,0.10429976]
[1736357681608,0.1078,93290.0,93285.0,0.10429976]
[1736357681792,0.1078,93290.0,93285.0,0.13617084]
[1736357681992,0.1078,93290.0,93287.0,0.214391]
[1736357682193,0.1078,93290.0,93289.0,0.214387]
[1736357682396,0.1078,93290.0,93277.0,0.214413]
[1736357682596,0.1078,93290.0,93260.0,0.1457]
[1736357682597,0.15,93289.0,93271.0,1.9089]
[1736357682811,0.15,93289.0,93272.0,0.10429976]
[1736357683038,0.15,93289.0,93273.0,0.10429976]
[1736357683195,0.1078,93293.0,93274.0,0.10429976]
[1736357683398,0.1078,93293.0,93282.0,0.214401]
[1736357683620,0.1078,93293.0,93283.0,0.10429976]
[1736357683778,0.0001706,93316.0,93283.0,0.10429976]
[1736357683985,0.15,93314.0,93283.0,0.10429976]
[1736357684228,0.0001706,93316.0,93293.0,0.10429976]
[1736357684428,0.1078,93314.0,93299.0,0.10429976]
[1736357684642,0.0001706,93316.0,93313.0,0.214332]
[1736357684782,0.0001706,93316.0,93313.0,0.428664]
[1736357684984,0.0001706,93316.0,93315.0,0.314327]
[1736357685248,0.1078,93356.0,93347.0,0.214254]
[1736357685462,0.1078,93356.0,93347.0,0.31855376]
[1736357686692,0.1078,93356.0,93347.0,0.10429976]
[1736357687268,0.01441717,93348.0,93347.0,0.10429976]
[1736357687895,0.05772641,93371.0,93347.0,0.25758134]
[1736357688187,0.05772641,93371.0,93370.0,0.10429976]
[1736357688392,0.00713697,93371.0,93370.0,0.18719976]
[1736357688791,0.0001702,93384.0,93371.0,0.214199]
[1736357688968,0.0001702,93384.0,93371.0,0.31849876]
[1736357689173,0.10776,93382.0,93371.0,0.10429976]
[1736357689585,0.15,93381.0,93356.0,0.214231]
[1736357689810,0.15,93381.0,93357.0,0.10429976]
[1736357690431,0.01920355,93371.0,93370.0,0.214199]
[1736357690626,0.01920355,93371.0,93347.0,0.214254]
[1736357690833,0.01920355,93371.0,93326.0,0.15]
[1736357690834,0.01920355,93371.0,93362.0,0.214217]
[1736357691003,0.01920355,93371.0,93364.0,0.214215]
[1736357691205,0.01920355,93371.0,93365.0,0.10429976]
[1736357691411,0.01920355,93371.0,93330.0,0.314292]
[1736357691613,0.01920355,93371.0,93339.0,0.10429976]
[1736357691814,0.01920355,93371.0,93345.0,0.214257]
[1736357692043,0.03089588,93372.0,93314.0,0.09580912]
[1736357692044,0.173,93368.0,93314.0,0.09580912]
[1736357692243,0.173,93366.0,93315.0,0.10429976]
[1736357692450,0.01920355,93370.0,93321.0,0.10429976]
[1736357692617,0.15,93361.0,93327.0,0.214299]
[1736357692818,0.15,93361.0,93321.0,0.10429976]
[1736357692819,0.15,93356.0,93321.0,0.10429976]
[1736357693029,0.15,93356.0,93314.0,0.09580912]
[1736357693030,0.023,93353.0,93314.0,0.09580912]
[1736357693225,0.023,93351.0,93315.0,0.214327]
[1736357693496,0.173,93349.0,93316.0,0.10429976]
[1736357693654,0.15,93347.0,93321.0,0.214311]
[1736357693811,0.023,93346.0,93316.0,0.10429976]
[1736357694016,0.15,93344.0,93309.0,8.52e-05]
[1736357694235,0.15,93342.0,93309.0,8.52e-05]
[1736357694437,0.15,93330.0,93309.0,8.52e-05]
[1736357694644,0.15,93328.0,93309.0,8.52e-05]
[1736357694850,0.15,93326.0,93309.0,8.52e-05]
[1736357695047,0.15,93324.0,93309.0,8.52e-05]
[1736357695228,0.15,93322.0,93309.0,8.52e-05]
[1736357695495,0.2507261,93329.0,93309.0,8.52e-05]
[1736357695496,0.15,93320.0,93309.0,8.52e-05]
[1736357695692,0.15,93318.0,93309.0,8.52e-05]
[1736357695895,0.10429976,93317.0,93309.0,8.52e-05]
[1736357696142,0.15,93314.0,93309.0,8.52e-05]
[1736357696342,0.214328,93315.0,93309.0,8.52e-05]
[1736357696343,0.15,93310.0,93309.0,8.52e-05]
[1736357696520,0.25429976,93310.0,93309.0,8.52e-05]
[1736357697466,0.25364,93310.0,93309.0,8.52e-05]
[1736357697995,0.40784014,93310.0,93309.0,8.52e-05]
[1736357698825,0.30354038,93310.0,93309.0,8.52e-05]
[1736357699044,0.15354038,93310.0,93309.0,8.52e-05]
[1736357699250,0.15354038,93310.0,93271.0,1.9089]